bitfinex/quotes_ETHUSD_20251117
["timestamp","ask_amount","ask_price","bid_price","bid_amount"]
[1763340699262,0.002,3140.4,3140.1,1.11514042]
[1763340699581,0.002,3140.4,3139.9,1.67366391]
[1763340699582,0.002,3140.4,3140.2,1.11514042]
[1763340701093,0.002,3140.4,3140.3,0.5]
[1763340702026,0.002,3140.4,3140.3,3.13325076]
[1763340702313,0.002,3140.4,3140.3,0.905504]
[1763340703321,0.002,3140.7,3140.3,2.0392448]
[1763340703623,0.002,3140.7,3140.4,4.83849359]
[1763340703923,0.002,3140.7,3140.6,4.33849359]
[1763340704440,0.002,3141.7,3140.7,1.1337408]
[1763340704582,0.002,3141.7,3141.6,1.67797887]
[1763340705397,0.002,3141.7,3141.5,1.67797887]
[1763340705719,0.002,3141.7,3140.8,0.405504]
[1763340705720,0.002,3141.7,3141.6,1.11829289]
[1763340706377,0.002,3141.7,3141.6,1.11745076]
[1763340708803,0.3285,3141.7,3141.6,1.11745076]
[1763340709138,0.7884,3141.7,3140.9,1.11745076]
[1763340709346,0.0046,3141.5,3140.9,1.11745076]
[1763340709503,0.0046,3141.5,3141.0,1.11745076]
[1763340709705,0.4613,3141.4,3141.0,1.11745076]
[1763340710854,0.4613,3141.4,3140.9,1.11745076]
[1763340711354,0.4613,3141.4,3141.0,1.11745076]
[1763340712117,0.002,3141.7,3141.1,1.30755076]
[1763340712313,0.002,3141.7,3141.2,1.11745076]
[1763340712718,0.002,3141.7,3140.8,1.11745076]
[1763340712719,0.2945,3141.3,3140.8,1.11745076]
[1763340712929,0.0049,3141.2,3140.9,1.11745076]
[1763340713378,0.4916,3141.6,3141.0,1.11745076]
[1763340713545,0.65433408,3141.6,3141.0,1.11745076]
[1763340714060,0.4936,3141.5,3141.0,1.11745076]
[1763340714630,0.4936,3141.5,3140.9,1.11745076]
[1763340714631,0.2945,3141.1,3140.9,1.11745076]
[1763340714947,0.4936,3141.5,3140.8,1.11745076]
[1763340715125,0.4936,3141.4,3140.8,1.11745076]
[1763340715339,0.4831,3140.9,3140.6,1.67797887]
[1763340715697,0.4831,3140.9,3140.7,1.11987575]
[1763340716057,0.4936,3141.5,3140.8,1.11987575]
[1763340716368,0.4936,3141.5,3140.9,1.11987575]
[1763340716595,0.4936,3141.5,3140.8,1.11987575]
[1763340716748,0.4936,3141.5,3140.9,1.11987575]
[1763340717585,0.4936,3141.5,3141.1,1.11987575]
[1763340717890,0.2989,3141.2,3141.1,1.11987575]
[1763340718049,0.4936,3141.5,3141.1,1.11987575]
[1763340718874,0.4936,3141.5,3141.2,1.11987575]
[1763340719384,0.002,3141.7,3141.2,1.11987575]
[1763340719680,0.002,3141.7,3141.3,1.11987575]
[1763340719878,0.002,3141.7,3141.4,1.11987575]
[1763340720492,0.002,3141.7,3141.6,1.57937575]
[1763340720674,0.002,3141.7,3141.6,0.83492546]
[1763340720876,0.002,3141.7,3141.6,3.59920916]
[1763340721110,0.4936,3143.4,3141.7,0.405504]
[1763340721276,0.4936,3143.4,3142.0,0.865004]
[1763340721480,0.4936,3143.4,3142.0,3.10029898]
[1763340721801,0.4936,3143.7,3142.0,1.361904]
[1763340722020,0.1886,3142.9,3142.0,3.75564879]
[1763340722183,0.1886,3142.9,3142.0,3.56583932]
[1763340722526,0.8092,3142.1,3141.9,1.67635569]
[1763340722811,0.002,3142.1,3141.7,21.74733131]
[1763340722979,0.002,3142.1,3141.9,1.11773131]
[1763340723179,0.4956,3142.1,3141.7,1.11773131]
[1763340723384,0.1886,3141.8,3141.3,1.11773131]
[1763340723579,0.1886,3141.8,3141.1,1.11773131]
[1763340723779,0.4936,3141.7,3141.2,1.11773131]
[1763340724008,0.002,3142.1,3141.1,1.11773131]
[1763340724211,0.002,3142.1,3141.5,1.11773131]
[1763340724409,0.4936,3142.0,3141.4,1.11773131]
[1763340724901,0.1886,3141.9,3141.5,1.11773131]
[1763340725113,0.002,3142.1,3141.6,1.11773131]
[1763340725280,0.002,3142.1,3141.8,1.11773131]
[1763340725475,0.002,3142.1,3141.9,1.11773131]
[1763340725795,0.002,3142.1,3142.0,2.17325569]
[1763340725978,0.002,3142.1,3142.0,0.902404]
[1763340726179,0.002,3142.1,3142.0,1.21603184]
[1763340726393,0.002,3142.1,3142.0,4.58364708]
[1763340726606,0.002,3142.1,3142.0,1.21603184]
[1763340726812,0.002,3142.1,3142.0,5.14902143]
[1763340727116,0.002,3142.1,3142.0,2.34977264]
[1763340727270,0.002,3142.1,3142.0,1.21603184]
[1763340727926,0.002,3142.1,3142.0,2.34977264]
[1763340728298,0.002,3142.1,3142.0,1.21603184]
[1763340728999,0.002,3142.1,3142.0,5.14902143]
[1763340729406,0.002,3142.1,3142.0,2.34977264]
[1763340729699,0.002,3142.1,3142.0,5.14902143]
[1763340730103,0.4936,3144.5,3142.4,0.405504]
[1763340730298,0.1886,3145.4,3143.8,1.11260184]
[1763340730299,0.83040794,3145.0,3143.8,1.11260184]
[1763340730603,0.4936,3145.0,3144.2,1.11260184]
[1763340731334,0.4936,3145.0,3144.1,1.30270184]
[1763340731548,0.4936,3145.0,3144.1,1.11260184]
[1763340731758,0.4936,3145.0,3144.2,1.11260184]
[1763340731904,0.4936,3145.0,3144.0,1.11260184]
[1763340732345,0.4936,3145.0,3143.9,1.11260184]
[1763340732644,1.5392448,3144.6,3143.2,1.11260184]
[1763340732936,0.405504,3144.4,3143.2,1.11260184]
[1763340733139,0.405504,3144.4,3143.1,1.11260184]
[1763340733140,0.1886,3143.3,3143.1,1.11260184]
[1763340733343,0.1886,3143.3,3142.7,1.11260184]
[1763340733526,0.1886,3143.3,3142.5,1.66890277]
[1763340733527,0.4936,3143.2,3142.6,1.11260184]
[1763340733725,0.405504,3142.9,3142.2,20.6296]
[1763340734129,0.4936,3142.8,3141.7,1.11260184]
[1763340734328,0.4936,3142.8,3141.9,1.11260184]
[1763340736532,0.405504,3142.7,3141.6,1.11260184]
[1763340736724,0.405504,3142.7,3141.5,1.11260184]
[1763340737033,0.4521,3142.6,3141.4,1.11260184]
[1763340737237,0.405504,3142.5,3141.5,1.11260184]
[1763340737433,0.405504,3142.5,3141.3,1.11260184]
[1763340737621,0.4521,3142.4,3141.3,1.11260184]
[1763340738614,0.4521,3142.4,3141.3,1.3907523]
[1763340738843,0.4521,3142.4,3141.4,1.11260184]
[1763340740166,0.1304,3141.5,3141.2,1.11260184]
[1763340740365,0.1304,3142.0,3141.2,1.11260184]
[1763340740763,0.5825,3142.0,3141.2,1.11260184]
[1763340741457,1.1337408,3142.4,3141.3,1.11260184]
[1763340741837,1.6200408,3142.4,3141.3,1.11260184]
[1763340742364,1.1337408,3142.4,3141.3,1.11260184]
[1763340742659,0.4863,3142.3,3141.2,1.4106023]
[1763340743167,0.405504,3142.2,3141.0,1.11260184]
[1763340743458,0.405504,3142.2,3141.1,0.1916]
[1763340743763,0.4863,3142.2,3141.2,1.11260184]
[1763340744057,0.4863,3142.2,3141.2,0.29731046]
[1763340744263,0.4863,3142.2,3141.2,1.11260184]
[1763340745865,0.1959,3141.3,3141.0,0.001]
[1763340746066,0.4863,3141.2,3141.0,0.001]
[1763340746429,1.6200408,3141.2,3141.0,0.001]
[1763340746625,1.20290884,3141.1,3141.0,0.001]
[1763340746841,0.405504,3141.0,3140.7,0.001]
[1763340747040,6.15810755,3140.8,3140.6,0.001]
[1763340747371,1.1337408,3140.7,3140.6,0.001]
[1763340747580,0.1959,3141.3,3140.6,0.001]
[1763340747785,1.1337408,3142.3,3140.7,1.60390184]
[1763340747952,6.16010755,3142.4,3140.8,1.76439202]
[1763340748139,0.4863,3142.0,3140.8,1.27309202]
[1763340748572,1.1337408,3141.7,3140.7,1.11260184]
[1763340748773,0.6822,3142.1,3140.8,1.60390184]
[1763340748975,0.6822,3142.1,3140.9,1.11260184]
[1763340749474,0.4863,3142.0,3140.9,1.11260184]
[1763340749673,0.4863,3142.0,3141.0,0.16039018]
[1763340750075,0.002,3142.4,3141.1,0.6829]
[1763340750380,0.4883,3142.4,3141.1,1.79550184]
[1763340750786,0.4883,3142.4,3141.2,1.11260184]
[1763340751346,0.002,3142.4,3141.3,0.4913]
[1763340751550,0.002,3142.4,3141.5,1.11260184]
[1763340751841,0.002,3142.4,3141.4,1.27299202]
[1763340752288,0.002,3142.4,3141.4,0.16039018]
[1763340752499,0.002,3142.4,3141.5,1.11260184]
[1763340752788,0.002,3142.4,3141.8,1.11260184]
[1763340753007,0.002,3142.4,3141.5,1.11260184]
[1763340753008,0.4863,3142.3,3141.5,1.11260184]
[1763340753288,0.4863,3142.3,3141.4,0.16039018]
[1763340753646,0.4863,3142.3,3141.4,1.27299202]
[1763340753846,0.002,3142.4,3141.6,1.11260184]
[1763340754163,0.002,3142.4,3141.7,1.11260184]
[1763340754365,0.002,3142.4,3141.8,1.11260184]
[1763340754899,0.002,3142.4,3141.5,2.16020277]
[1763340754900,0.002,3142.4,3141.7,1.11260184]
[1763340755040,0.1959,3141.9,3141.5,1.11260184]
[1763340755372,0.4863,3142.3,3141.3,1.11260184]
[1763340755680,0.002,3142.4,3141.6,1.11260184]
[1763340755991,0.002,3142.4,3141.8,1.11260184]
[1763340756196,0.002,3142.4,3141.9,1.11260184]
[1763340756687,0.002,3142.4,3141.9,1.4398823]
[1763340757246,0.002,3142.4,3142.1,1.11260184]
[1763340757445,0.002,3142.4,3141.9,0.32728046]
[1763340757446,0.002,3142.4,3142.0,1.60390184]
[1763340757689,0.002,3142.4,3142.1,0.1916]
[1763340758143,0.002,3142.4,3142.2,1.60390184]
[1763340758477,0.002,3142.4,3142.2,1.11260184]
[1763340758702,0.002,3142.4,3142.2,1.60390184]
[1763340758889,0.002,3142.4,3142.3,0.17955018]
[1763340759278,0.002,3142.4,3142.1,1.11260184]
[1763340759969,0.002,3142.4,3142.1,1.79550184]
[1763340760172,0.002,3142.4,3142.2,1.11260184]
[1763340761202,0.002,3142.4,3142.3,1.11260184]
[1763340762278,0.002,3142.4,3142.2,1.66890277]
[1763340762279,0.3007,3142.4,3142.2,1.66890277]
[1763340762478,0.3007,3142.4,3139.5,0.001]
[1763340762479,0.3007,3142.4,3142.3,1.11269672]
[1763340762885,0.7851,3142.4,3142.3,1.11269672]
[1763340763052,0.7851,3142.4,3142.0,1.11269672]
[1763340763249,0.0048,3142.1,3142.0,1.11269672]
[1763340763567,0.0048,3142.1,3141.8,1.11269672]
[1763340763987,0.4898,3141.9,3141.8,1.11269672]
[1763340764184,0.4863,3142.3,3141.6,1.66890277]
[1763340764367,0.4863,3142.3,3141.9,1.11418951]
[1763340764757,0.2987,3142.0,3141.9,1.11418951]
[1763340765167,0.7831,3142.0,3141.9,1.11418951]
[1763340766068,0.7831,3142.0,3141.8,1.11418951]
[1763340766271,0.4863,3141.9,3141.8,1.11418951]
[1763340766621,0.9686,3141.9,3141.8,1.11418951]
[1763340767114,0.002,3142.4,3141.8,0.27830923]
[1763340767271,0.002,3142.4,3142.0,1.11409384]
[1763340767472,0.002,3142.4,3142.1,1.11409384]
[1763340768606,0.4823,3142.2,3142.0,1.11409384]
[1763340768817,0.3026,3142.3,3141.8,1.11409384]
[1763340769109,1.083704,3141.9,3141.4,1.11409384]
[1763340769310,0.003,3141.7,3141.3,1.11409384]
[1763340769908,0.1959,3141.9,3141.5,1.11409384]
[1763340770106,0.002,3142.4,3141.5,1.3923935]
[1763340770304,0.002,3142.4,3141.9,1.11409384]
[1763340771320,0.48,3142.4,3141.9,1.11409384]
[1763340771519,0.48,3142.4,3141.8,1.11409384]
[1763340771685,0.48,3142.4,3141.9,1.11409384]
[1763340772314,0.002,3142.4,3141.9,1.11409384]
[1763340772496,0.002,3142.4,3142.0,1.11409384]
[1763340773020,0.3069,3142.1,3142.0,1.11409384]
[1763340773218,0.3069,3142.1,3141.9,1.11409384]
[1763340773419,0.478,3142.0,3141.8,1.11409384]
[1763340773722,0.478,3142.0,3141.6,1.11409384]
[1763340773926,0.4924,3141.7,3141.5,1.11409384]
[1763340774122,0.4924,3141.7,3141.3,1.11409384]
[1763340774123,0.1855,3141.7,3141.3,1.11409384]
[1763340774297,0.405504,3141.5,3141.2,1.11409384]
[1763340774619,0.405504,3141.5,3140.9,1.11409384]
[1763340774824,0.478,3141.4,3140.9,1.11409384]
[1763340775119,0.478,3141.4,3140.8,1.11409384]
[1763340775319,0.1855,3140.9,3140.7,1.11409384]
[1763340776318,0.478,3140.8,3140.6,1.11509384]
[1763340776510,0.478,3140.8,3140.6,0.001]
[1763340777586,0.478,3140.8,3140.6,1.11509384]
[1763340777819,0.1855,3140.9,3140.6,1.11509384]
[1763340778219,0.3275,3140.7,3140.6,0.001]
[1763340778521,0.804,3140.7,3140.6,0.001]
[1763340778923,1.01632408,3140.7,3140.6,0.001]
[1763340779125,0.804,3140.7,3140.6,0.001]
[1763340779982,0.3275,3140.7,3140.6,0.001]
[1763340781246,0.804,3140.7,3140.6,0.001]
[1763340781812,0.1855,3140.9,3140.6,0.001]
[1763340782235,0.6635,3140.9,3140.6,0.001]
[1763340782559,0.3275,3140.7,3140.6,0.001]
[1763340782897,0.4765,3141.2,3140.6,0.001]
[1763340783851,0.16117408,3141.3,3140.6,0.001]
[1763340784055,0.478,3141.3,3140.6,1.11509384]
[1763340784212,0.3294,3140.7,3140.6,0.001]
[1763340784419,0.405504,3140.6,3140.5,0.001]
[1763340784607,1.068504,3140.6,3140.5,0.001]
[1763340785250,8.47170591,3140.6,3140.5,0.001]
[1763340785408,9.3374265,3140.6,3140.5,0.001]
[1763340786921,8.28393847,3140.6,3140.5,0.001]
[1763340787510,8.09893847,3140.6,3140.5,0.001]
[1763340787709,7.23321788,3140.6,3140.5,0.001]
[1763340788354,1.1337408,3140.6,3140.5,0.001]
[1763340789033,5.33576494,3141.4,3140.5,0.4911]
[1763340789205,1.1337408,3141.3,3140.5,0.4911]
[1763340789739,1.1337408,3140.8,3140.5,0.001]
[1763340789918,0.39492155,3140.7,3140.5,0.001]
[1763340790324,1.1337408,3140.8,3140.5,0.001]
[1763340791548,0.405504,3141.6,3140.5,0.001]
[1763340791758,1.1337408,3141.2,3140.5,0.001]
[1763340792142,0.1875,3141.7,3140.6,0.487]
[1763340792452,0.1875,3141.7,3140.8,1.11409384]
[1763340792453,0.478,3141.6,3140.8,1.11409384]
[1763340792638,0.478,3141.6,3140.6,1.11409384]
[1763340792838,0.478,3141.6,3140.6,1.3924935]
[1763340793039,0.002,3141.7,3140.7,1.60109384]
[1763340793243,0.48,3141.7,3140.8,1.11409384]
[1763340793640,0.002,3141.7,3140.8,1.11409384]
[1763340794621,0.48,3141.7,3140.8,1.11409384]
[1763340794863,0.17992408,3141.6,3140.8,1.11409384]
[1763340795942,0.002,3141.7,3141.5,0.6839]
[1763340796147,0.002,3141.7,3141.2,1.11409384]
[1763340796356,0.002,3141.7,3141.1,1.11409384]
[1763340796536,0.002,3141.7,3141.1,1.31199384]
[1763340796737,0.002,3141.7,3141.2,0.4928]
[1763340796973,0.002,3141.7,3141.3,1.29457322]
[1763340797671,0.5002,3141.7,3141.2,1.11409384]
[1763340797971,0.002,3141.7,3141.2,1.11409384]
[1763340798158,0.002,3141.7,3141.3,1.31199384]
[1763340798372,0.002,3141.7,3141.6,0.4806]
[1763340798680,0.002,3141.7,3141.6,0.9734]
[1763340799176,0.002,3142.4,3141.7,0.405504]
[1763340799398,0.002,3142.4,3142.3,0.5839]
[1763340799535,0.002,3142.4,3142.3,2.25855248]
[1763340799736,0.002,3142.4,3142.3,1.30255525]
[1763340799992,0.002,3142.4,3142.3,1.482204]
[1763340800282,3.37082851,3145.1,3142.3,1.482204]
[1763340800283,0.1912,3144.7,3142.4,0.405504]
[1763340800578,1.1337408,3144.2,3143.0,1.11475141]
[1763340800785,1.5392448,3143.7,3142.9,1.11475141]
[1763340800967,1.5392448,3143.7,3142.8,1.11475141]
[1763340800968,0.68750097,3143.6,3142.8,1.11475141]
[1763340801641,0.6894,3143.9,3142.8,1.58385141]
[1763340801977,0.6894,3143.9,3142.9,1.58385141]
[1763340801978,0.1912,3143.9,3142.9,1.58385141]
[1763340802289,0.4672,3143.8,3142.7,1.11475141]
[1763340802444,1.1337408,3143.6,3142.7,1.11475141]
[1763340802882,0.4672,3143.6,3142.7,1.11475141]
[1763340803081,0.62729408,3143.6,3142.7,1.11475141]
[1763340803296,0.62729408,3143.6,3142.6,1.11475141]
[1763340803894,1.1337408,3143.4,3142.6,1.58385141]
[1763340804286,1.1337408,3143.4,3142.6,0.4691]
[1763340804592,0.4672,3143.3,3142.3,0.1033]
[1763340804794,0.16009408,3143.2,3142.3,0.1033]
[1763340804998,0.16009408,3143.6,3142.4,0.4691]
[1763340805207,0.4672,3143.6,3142.4,0.4691]
[1763340805497,0.4672,3143.6,3142.3,1.21805141]
[1763340805498,1.1337408,3143.2,3142.3,1.21805141]
[1763340805659,1.1337408,3143.2,3142.3,0.1033]
[1763340806282,0.4672,3143.5,3142.2,1.11475141]
[1763340806470,1.1337408,3143.3,3142.4,0.4691]
[1763340807598,1.1337408,3143.6,3142.4,0.4691]
[1763340807757,1.55016899,3143.6,3142.2,1.11475141]
[1763340807963,0.1844,3143.9,3142.6,1.11475141]
[1763340808162,0.1844,3143.9,3142.7,0.4691]
[1763340808358,3.17966725,3145.0,3142.7,0.4691]
[1763340808359,0.85423242,3146.7,3143.8,0.655]
[1763340808563,5.80296494,3145.9,3144.1,0.4588]
[1763340808824,0.58029649,3145.8,3144.2,1.58385141]
[1763340808967,0.4672,3146.6,3144.6,1.11475141]
[1763340809299,0.6516,3146.6,3145.0,0.1451]
[1763340809460,1.1337408,3146.2,3145.0,0.1451]
[1763340809666,0.64695057,3146.1,3145.1,0.4691]
[1763340810061,0.64695057,3146.1,3144.4,1.67212711]
[1763340810062,1.3181408,3145.2,3144.4,1.11475141]
[1763340810312,1.3181408,3145.2,3143.6,20.6296]
[1763340810313,0.1844,3144.5,3143.6,20.6296]
[1763340810477,1.1337408,3144.7,3143.6,20.6296]
[1763340810665,1.1337408,3144.7,3143.7,2.55168]
[1763340811272,1.1337408,3144.8,3143.8,0.4691]
[1763340811576,0.1844,3145.2,3143.8,0.4691]
[1763340812619,0.405504,3144.7,3143.5,0.1962]
[1763340812829,1.1337408,3144.3,3143.5,0.1962]
[1763340813120,0.1844,3143.6,3142.6,0.1962]
[1763340813326,0.1844,3143.6,3141.9,22.85910282]
[1763340813327,1.1337408,3142.9,3142.1,0.1962]
[1763340813471,1.1337408,3143.4,3142.1,0.6653]
[1763340813985,1.1337408,3143.4,3142.2,0.4691]
[1763340814479,1.79913137,3143.4,3142.2,0.4691]
[1763340815412,1.1337408,3143.9,3142.2,0.4691]
[1763340816485,1.1337408,3143.9,3142.3,1.11475141]
[1763340816686,1.1337408,3143.9,3142.4,0.405504]
[1763340816882,1.1337408,3143.9,3142.4,1.98935541]
[1763340817307,1.1337408,3143.9,3142.5,1.58385141]
[1763340817513,0.002,3143.4,3142.6,0.66803554]
[1763340817710,1.1357408,3143.4,3142.2,1.11475141]
[1763340817893,1.1357408,3143.4,3142.3,0.4691]
[1763340818508,0.002,3143.4,3142.3,0.4691]
[1763340818708,0.002,3143.4,3142.4,1.11475141]
[1763340819039,0.002,3143.4,3143.3,0.1962]
[1763340819985,0.002,3143.4,3143.3,0.6653]
[1763340820201,0.002,3143.4,3143.3,1.78005141]
[1763340820428,0.002,3143.4,3143.3,0.84330514]
[1763340820639,0.002,3143.4,3143.3,1.95805655]
[1763340820785,0.002,3143.4,3143.3,1.95179884]
[1763340821137,0.002,3143.4,3143.3,0.84330514]
[1763340821346,0.002,3143.4,3143.3,2.51543225]
[1763340821556,6.44991551,3146.1,3143.4,0.405504]
[1763340821837,1.1337408,3145.5,3144.0,1.10824021]
[1763340822185,0.4672,3145.4,3144.1,1.77354021]
[1763340822440,0.4672,3145.4,3144.1,1.30444021]
[1763340822736,1.1337408,3145.0,3143.7,1.10824021]
[1763340823032,0.64695057,3144.9,3143.7,1.31209476]
[1763340823238,1.29855057,3144.9,3143.7,1.31209476]
[1763340823384,1.1337408,3144.5,3143.5,0.93030528]
[1763340823728,1.1337408,3144.5,3143.3,0.37420514]
[1763340823729,1.1337408,3144.5,3143.3,1.48244535]
[1763340824017,0.4672,3144.4,3143.3,1.48244535]
[1763340824528,1.1337408,3144.5,3143.4,1.57734021]
[1763340824832,0.405504,3144.8,3143.5,1.57734021]
[1763340825133,0.6516,3144.9,3143.5,1.57734021]
[1763340825286,0.6516,3144.9,3143.7,1.10824021]
[1763340825487,0.1844,3144.9,3143.8,1.10824021]
[1763340825710,0.84979057,3144.9,3143.8,1.43221026]
[1763340825919,0.84979057,3144.9,3143.8,1.10824021]
[1763340826487,0.84979057,3144.9,3143.9,1.57734021]
[1763340826692,0.1844,3144.9,3144.0,1.10824021]
[1763340826906,1.1337408,3145.0,3144.0,1.57734021]
[1763340827133,0.4672,3145.4,3144.2,1.10824021]
[1763340827334,5.33576494,3145.6,3144.3,1.10824021]
[1763340827638,1.66731729,3145.5,3144.4,1.10824021]
[1763340828015,3.3620536,3147.0,3144.7,1.10824021]
[1763340828016,0.4672,3146.1,3144.7,1.10824021]
[1763340828189,0.4672,3146.1,3144.5,2.13146031]
[1763340828190,1.1337408,3145.4,3144.8,1.10824021]
[1763340828391,1.1337408,3145.4,3144.4,1.10824021]
[1763340828392,1.6009408,3145.4,3144.4,1.10824021]
[1763340828591,5.33576494,3145.5,3144.6,1.10824021]
[1763340829026,1.1337408,3145.4,3144.6,1.10824021]
[1763340829211,1.1337408,3145.4,3144.6,1.38530026]
[1763340829617,1.1337408,3145.4,3144.6,1.10824021]
[1763340829789,0.4672,3145.9,3144.8,1.10824021]
[1763340829990,0.4672,3146.5,3145.0,1.10824021]
[1763340830212,5.80296494,3146.5,3145.0,1.10824021]
[1763340830493,1.1337408,3146.4,3145.1,0.6653]
[1763340830830,0.6516,3146.2,3145.1,0.6653]
[1763340831132,0.6516,3146.2,3144.8,1.10824021]
[1763340831133,5.33576494,3145.6,3144.8,1.10824021]
[1763340831303,0.405504,3146.0,3144.8,1.10824021]
[1763340831491,1.1337408,3145.7,3144.8,1.10824021]
[1763340831694,1.1337408,3145.7,3144.1,24.17602122]
[1763340831695,0.184,3144.9,3144.6,1.10824021]
[1763340831931,1.1337408,3144.7,3144.1,20.6296]
[1763340832230,1.1337408,3144.2,3143.3,1.10824021]
[1763340832390,1.1337408,3144.2,3143.2,1.10824021]
[1763340832585,1.09845057,3144.6,3142.4,0.4821]
[1763340832586,5.33576494,3143.8,3143.1,1.10824021]
[1763340832787,5.33576494,3143.8,3142.9,1.10824021]
[1763340832788,1.1337408,3143.7,3142.9,1.10824021]
[1763340833050,1.1337408,3143.7,3143.0,1.10824021]
[1763340833051,0.64695057,3143.7,3143.0,1.10824021]
[1763340833267,0.184,3144.0,3143.0,1.10824021]
[1763340833469,0.184,3144.0,3142.1,0.1972]
[1763340833470,0.184,3144.0,3143.1,1.30444021]
[1763340834110,5.33576494,3143.7,3143.0,1.10824021]
[1763340834314,1.1337408,3143.6,3143.0,1.10824021]
[1763340834556,1.5852408,3143.6,3142.6,1.10824021]
[1763340834766,0.69210057,3143.5,3142.7,1.59034021]
[1763340834915,0.184,3144.0,3142.1,20.8268]
[1763340834916,0.4515,3143.9,3142.8,1.10824021]
[1763340835110,0.4515,3143.9,3143.0,1.10824021]
[1763340835315,1.1337408,3143.7,3142.9,1.10824021]
[1763340835558,0.4515,3143.6,3142.9,1.10824021]
[1763340835755,1.14360057,3143.6,3142.9,1.10824021]
[1763340836228,1.14360057,3143.6,3142.1,0.1972]
[1763340836229,0.69210057,3143.6,3142.7,1.10824021]
[1763340836556,0.69210057,3143.6,3142.8,1.10824021]
[1763340836918,0.69210057,3143.6,3143.0,0.001]
[1763340837319,0.184,3144.0,3143.1,0.1962]
[1763340837563,0.4515,3144.3,3143.2,1.10824021]
[1763340837726,0.4515,3144.3,3143.3,1.10824021]
[1763340838528,0.6355,3144.9,3143.4,0.4821]
[1763340838717,5.33576494,3144.8,3143.6,1.10824021]
[1763340838920,2.18236729,3144.7,3143.6,1.43351026]
[1763340839163,2.18236729,3144.7,3143.6,1.59034021]
[1763340839368,1.04862649,3144.7,3143.7,1.10824021]
[1763340839668,1.1337408,3144.2,3143.6,1.10824021]
[1763340839874,0.184,3143.7,3143.5,1.10824021]
[1763340840050,1.1337408,3144.4,3143.5,1.10824021]
[1763340840255,0.184,3143.9,3143.5,1.10824021]
[1763340840619,0.4515,3143.8,3143.1,1.10824021]
[1763340840841,1.1337408,3143.4,3143.0,0.001]
[1763340841043,0.405504,3143.3,3143.0,0.001]
[1763340841291,0.857004,3143.3,3143.0,0.001]
[1763340841498,0.405504,3143.1,3143.0,0.001]
[1763340841674,0.857004,3143.1,3143.0,0.001]
[1763340841842,0.405504,3143.1,3143.0,0.001]
[1763340842042,0.857004,3143.1,3143.0,0.001]
[1763340842266,0.4515,3143.1,3143.0,0.001]
[1763340842780,0.4515,3143.7,3143.0,0.001]
[1763340842944,1.1337408,3143.7,3143.0,0.001]
[1763340843139,1.1337408,3143.7,3143.1,0.1981]
[1763340843339,0.4515,3144.1,3143.1,0.1981]
[1763340843666,1.1337408,3143.7,3143.0,0.001]
[1763340844047,1.5852408,3143.7,3143.0,0.001]
[1763340844243,2.27734137,3143.7,3143.0,0.001]
[1763340844673,1.1337408,3143.9,3143.0,0.001]
[1763340845204,0.4515,3143.8,3143.0,0.001]
[1763340845399,0.4515,3143.8,3143.0,1.10924021]
[1763340845605,0.4515,3143.8,3143.0,0.001]
[1763340845900,1.1337408,3143.4,3143.0,0.001]
[1763340846296,1.5852408,3143.4,3143.0,0.001]
[1763340846600,1.1337408,3143.4,3143.0,0.001]
[1763340846806,5.47263799,3143.9,3143.0,0.001]
[1763340846978,0.4515,3143.4,3143.0,0.001]
[1763340847179,1.1337408,3143.8,3143.0,0.001]
[1763340847397,0.4515,3143.7,3143.0,0.001]
[1763340847908,1.5392448,3143.3,3143.0,0.001]
[1763340848384,0.4515,3143.2,3143.0,0.001]
[1763340848576,0.19907448,3143.1,3143.0,0.001]
[1763340849001,0.65057448,3143.1,3143.0,0.001]
[1763340850478,0.405504,3143.5,3143.0,0.001]
[1763340850906,0.857004,3143.5,3143.0,0.001]
[1763340851283,0.4515,3143.4,3143.0,0.001]
[1763340852019,0.405504,3143.5,3143.0,0.001]
[1763340852224,0.4515,3143.3,3143.0,0.001]
[1763340852434,1.9133448,3143.1,3143.0,0.001]
[1763340852594,2.69709308,3143.1,3143.0,0.001]
[1763340852791,3.14779308,3143.1,3143.0,0.001]
[1763340853494,0.405504,3143.0,3142.6,0.001]
[1763340853694,0.405504,3142.0,3141.8,0.001]
[1763340853999,1.1337408,3142.1,3141.8,0.001]
[1763340854613,1.5852408,3142.1,3141.8,0.001]
[1763340854819,0.405504,3142.5,3141.8,0.001]
[1763340855088,1.1337408,3142.1,3141.8,0.001]
[1763340855826,0.405504,3142.5,3141.8,0.001]
[1763340856028,1.1337408,3142.6,3141.8,0.001]
[1763340856212,1.6181408,3142.6,3142.3,0.001]
[1763340856532,0.4844,3142.5,3142.3,0.001]
[1763340856746,1.1337408,3142.6,3142.3,0.001]
[1763340856924,0.1922,3142.9,3142.3,0.001]
[1763340857288,0.597704,3142.9,3142.3,0.001]
[1763340857538,0.17314448,3142.8,3142.3,0.001]
[1763340858038,0.4844,3142.7,3142.3,0.001]
[1763340858198,0.17314448,3142.8,3142.3,0.001]
[1763340858397,0.4844,3142.7,3142.3,0.001]
[1763340859199,0.17314448,3142.8,3142.3,0.001]
[1763340859427,1.1337408,3143.0,3142.3,0.4516]
[1763340859948,1.1337408,3143.0,3142.3,0.001]
[1763340860163,0.6684,3143.3,3142.3,0.4516]
[1763340861069,0.1922,3142.4,3142.3,0.001]
[1763340861368,0.5263,3142.4,3142.3,0.001]
[1763340861523,1.70056788,3142.4,3142.3,0.001]
[1763340861834,2.0002448,3143.0,3142.3,0.001]
[1763340862161,0.1997,3142.9,3142.3,0.001]
[1763340862964,0.6607,3142.9,3142.3,0.001]
[1763340864268,1.5392448,3143.0,3142.3,0.001]
[1763340864269,1.1337408,3143.0,3142.3,0.001]
[1763340864430,0.66063788,3142.9,3142.3,0.001]
[1763340864764,0.4598,3142.4,3142.3,0.001]
[1763340865142,0.8109,3142.4,3142.3,0.001]